bitfinex-derivatives/quotes_ETHF0:USTF0_20260115
["timestamp","ask_amount","ask_price","bid_price","bid_amount"]
[1768488000218,0.00448611,3345.9,3344.6,0.00448611]
[1768488000620,0.00448611,3345.9,3344.6,0.19967236]
[1768488001312,0.18305394,3346.7,3344.6,0.19967236]
[1768488001313,0.00229928,3346.8,3344.6,0.19967236]
[1768488001716,0.00229928,3346.8,3344.8,0.19518625]
[1768488001916,0.00229928,3346.8,3345.0,0.19518625]
[1768488002329,0.18305394,3348.0,3345.4,0.19518625]
[1768488002517,0.18305394,3348.0,3345.3,0.1495]
[1768488002518,0.14943,3347.0,3344.8,3.93832543]
[1768488002717,0.14943,3347.0,3344.0,5.26994145]
[1768488002718,0.18305394,3346.8,3344.2,0.19518625]
[1768488002919,0.18305394,3346.4,3343.6,3.18908189]
[1768488003226,0.18305394,3346.2,3343.6,0.00289564]
[1768488003424,0.18305394,3346.0,3343.6,0.00289564]
[1768488003622,1.04457738,3345.9,3343.6,0.00289564]
[1768488003816,0.18305394,3345.9,3344.4,0.00448611]
[1768488004020,0.14947,3346.1,3344.4,0.00448611]
[1768488004221,0.0026151,3346.2,3344.4,0.00448611]
[1768488004527,0.0026151,3346.2,3344.4,0.19967236]
[1768488004822,0.14941,3347.4,3344.7,0.19518625]
[1768488005024,0.14941,3347.4,3345.0,0.34469625]
[1768488005226,0.14941,3347.4,3345.1,0.19518625]
[1768488005428,2.991,3347.8,3345.2,0.19518625]
[1768488005636,2.991,3347.8,3345.2,0.34469625]
[1768488005821,0.00211792,3347.8,3346.2,0.00448611]
[1768488006022,0.00211792,3347.8,3346.2,0.00727302]
[1768488006228,0.00211792,3347.8,3346.2,0.20245927]
[1768488006429,0.18305394,3348.6,3346.3,0.19518625]
[1768488006724,0.00448611,3347.3,3346.2,0.00727302]
[1768488006923,0.14937,3348.4,3346.2,0.20245927]
[1768488007132,0.14938,3348.0,3346.2,0.20245927]
[1768488007428,0.0035953,3348.0,3346.2,0.20245927]
[1768488007626,0.14935,3348.9,3346.2,0.20245927]
[1768488008026,0.14935,3348.8,3346.4,0.19518625]
[1768488008330,0.18305394,3349.1,3346.4,0.19518625]
[1768488008538,2.06763053,3349.2,3346.2,0.20245927]
[1768488008539,0.14936,3348.5,3346.2,0.20245927]
[1768488008834,0.15252571,3348.5,3346.2,0.20245927]
[1768488009028,0.00316571,3348.5,3346.2,0.20245927]
[1768488010235,0.14939,3348.0,3346.2,0.00727302]
[1768488010527,0.00316571,3348.5,3346.2,0.20245927]
[1768488010720,0.18305394,3348.4,3346.2,0.20245927]
[1768488010918,0.14938,3348.2,3346.2,0.20245927]
[1768488011127,0.18305394,3348.4,3346.2,0.00727302]
[1768488011320,0.14938,3348.0,3346.2,0.00727302]
[1768488012324,0.18305394,3348.4,3346.2,0.20245927]
[1768488012624,0.00316571,3348.5,3346.2,0.20245927]
[1768488012928,0.00316571,3348.5,3346.5,0.19518625]
[1768488014537,0.18621965,3348.5,3346.2,0.00727302]
[1768488015028,0.00316571,3348.5,3346.2,0.20245927]
[1768488015346,0.00316571,3348.5,3346.5,0.19518625]
[1768488016234,0.00316571,3348.5,3346.2,0.00727302]
[1768488016235,0.33557965,3348.5,3346.2,0.00727302]
[1768488016426,0.33557965,3348.5,3346.2,0.20245927]
[1768488017020,0.15252571,3348.5,3346.3,0.19518625]
[1768488017225,0.00316571,3348.5,3346.5,0.19518625]
[1768488018331,0.00316571,3348.5,3346.7,0.19518625]
[1768488018532,0.00316571,3348.5,3347.0,0.19518625]
[1768488018732,0.18621965,3348.5,3346.3,1.165]
[1768488018938,0.18621965,3348.5,3346.2,0.00727302]
[1768488019234,0.14939,3347.8,3346.2,0.00727302]
[1768488019832,0.18621965,3348.5,3346.2,0.00727302]
[1768488020037,0.33244394,3347.8,3346.2,0.00727302]
[1768488020225,0.18305394,3347.7,3346.2,0.00727302]
[1768488021228,0.31865344,3347.6,3346.2,0.00727302]
[1768488021541,0.16925344,3347.5,3346.2,0.00727302]
[1768488022031,0.16925344,3346.8,3344.5,0.16655439]
[1768488022237,0.16925344,3346.8,3343.7,2.989]
[1768488022238,0.16925344,3346.7,3343.9,0.16655439]
[1768488022536,0.31867344,3347.2,3344.2,0.16655439]
[1768488022730,0.16925344,3347.1,3344.3,0.16655439]
[1768488022936,0.16925344,3347.0,3344.3,0.17031622]
[1768488023137,0.16925344,3347.0,3345.4,0.00448611]
[1768488023733,0.16925344,3346.9,3345.4,0.00448611]
[1768488023933,0.16925344,3346.3,3344.3,0.00376183]
[1768488024139,0.16818234,3345.8,3344.3,0.00376183]
[1768488024332,0.16818234,3345.6,3343.0,0.17854401]
[1768488024737,0.1495,3345.5,3343.1,0.17854401]
[1768488025042,0.1495,3345.5,3344.0,0.00448611]
[1768488025538,0.1495,3345.5,3344.0,0.00670206]
[1768488025936,0.31768234,3345.5,3343.1,0.17854401]
[1768488026138,0.16818234,3345.4,3343.1,0.17854401]
[1768488026631,0.0036813,3345.8,3343.3,0.17854401]
[1768488026825,0.0036813,3345.8,3343.4,0.17854401]
[1768488027027,0.17186364,3345.8,3343.4,0.18106922]
[1768488027238,0.00448611,3344.9,3344.3,0.00448611]
[1768488027429,0.00448611,3344.9,3343.4,0.00252521]
[1768488027628,0.32218845,3344.9,3343.4,0.00252521]
[1768488028442,0.00448611,3344.9,3343.4,0.00252521]
[1768488028746,0.17266845,3344.9,3343.4,0.00252521]
[1768488029251,0.14954,3344.6,3343.4,0.00252521]
[1768488029445,0.14957,3343.8,3341.4,0.17854401]
[1768488029631,0.16818234,3344.0,3341.4,0.17854401]
[1768488029837,0.16818234,3344.0,3342.3,0.00448611]
[1768488030138,0.00448611,3343.0,3342.3,0.00448611]
[1768488030335,0.14956,3344.1,3342.3,0.00796998]
[1768488030645,0.16818234,3344.6,3342.3,0.00796998]
[1768488030844,0.31772234,3344.6,3342.3,0.18651399]
[1768488031347,0.15173533,3344.6,3342.3,0.18651399]
[1768488031533,0.00219533,3344.6,3342.4,0.17854401]
[1768488032033,0.00219533,3344.6,3342.4,0.32817401]
[1768488032235,0.00219533,3344.6,3342.5,0.17854401]
[1768488032841,1e-08,3343.9,3342.5,0.17854401]
[1768488033036,1e-08,3343.9,3342.7,0.17854401]
[1768488033233,1e-08,3343.9,3342.7,3.16954401]
[1768488033639,1e-08,3343.9,3342.3,0.00796998]
[1768488033840,1e-08,3343.9,3342.3,0.18651399]
[1768488034638,0.14959,3343.5,3342.3,0.00796998]
[1768488035946,0.14957001,3343.9,3342.3,0.00796998]
[1768488036649,1e-08,3343.9,3342.3,0.00796998]
[1768488036847,1e-08,3343.9,3342.3,0.18651399]
[1768488037151,1e-08,3343.9,3342.7,0.17854401]
[1768488037353,0.16818234,3345.8,3343.3,0.17854401]
[1768488037645,2.991,3346.0,3343.5,0.17854401]
[1768488038043,0.16818234,3346.4,3343.9,0.17854401]
[1768488038345,0.17114481,3346.4,3343.5,0.17854401]
[1768488038548,0.16818234,3345.8,3343.5,0.17854401]
[1768488039046,0.16818234,3345.6,3342.9,0.17854401]
[1768488039648,0.00448611,3344.6,3343.9,0.00448611]
[1768488040652,1e-08,3344.6,3343.9,0.00448611]
[1768488040846,2.991,3346.1,3343.9,0.00448611]
[1768488041151,0.16818234,3345.4,3343.9,0.00448611]
[1768488041449,0.31988768,3345.1,3342.7,0.17854401]
[1768488041653,0.16818234,3345.5,3342.7,0.17854401]
[1768488041851,0.16818234,3345.5,3342.9,0.17854401]
[1768488042157,0.16818234,3345.4,3342.9,0.17854401]
[1768488042342,0.16818234,3345.2,3343.8,0.00448611]
[1768488042748,0.00219534,3345.0,3343.8,0.00448611]
[1768488042950,0.00219534,3344.9,3343.8,0.00448611]
[1768488043253,0.00219534,3345.0,3343.8,0.00448611]
[1768488043557,0.00219534,3344.2,3342.3,3.32366788]
[1768488043757,0.17266845,3344.7,3342.3,0.18202788]
[1768488043948,0.16818234,3344.4,3342.3,0.18202788]
[1768488044149,0.00448611,3344.7,3342.3,0.33166788]
[1768488044358,0.00448611,3344.7,3342.4,0.17854401]
[1768488044659,0.00448611,3344.7,3343.2,0.00448611]
[1768488045051,0.00448611,3344.7,3343.2,0.18303012]
[1768488045555,0.16818234,3346.3,3343.7,0.17854401]
[1768488046356,0.17037768,3346.2,3343.8,0.14957]
[1768488046562,0.16818234,3346.2,3343.8,0.14957]
[1768488046752,0.00219534,3346.1,3343.7,3.17054401]
[1768488046957,0.16818234,3345.6,3343.2,0.00448611]
[1768488047154,0.16818234,3345.6,3343.2,0.18303012]
[1768488047359,0.16818234,3346.2,3343.3,0.17854401]
[1768488047756,0.16818234,3346.0,3343.4,0.17854401]
[1768488048062,0.16818234,3345.5,3343.2,0.00448611]
[1768488048361,0.00448611,3345.0,3343.2,0.00448611]
[1768488048564,0.00219534,3344.9,3343.2,0.00448611]
[1768488048762,0.00219534,3344.5,3343.2,0.00448611]
[1768488048958,0.16818234,3344.1,3342.3,0.00348387]
[1768488049266,0.16818234,3344.0,3342.3,0.00348387]
[1768488049763,0.0031111,3344.0,3342.3,0.00348387]
[1768488050057,0.00219534,3343.9,3342.8,0.00448611]
[1768488050258,0.0031111,3344.0,3342.8,0.00448611]
[1768488050861,0.16742029,3345.3,3343.0,0.1624385]
[1768488051253,0.16742029,3345.3,3343.0,0.3120485]
[1768488051459,0.16742029,3345.3,3343.1,0.1624385]
[1768488051760,0.00786142,3345.0,3343.1,0.1624385]
[1768488051962,0.17528171,3345.0,3342.8,0.00448611]
[1768488052165,0.00219534,3344.9,3342.8,0.00448611]
[1768488052362,0.00219534,3344.4,3342.8,0.00448611]
[1768488052659,0.14954,3344.6,3342.8,0.00448611]
[1768488052966,0.31696029,3344.6,3342.8,0.00448611]
[1768488053267,0.00219534,3344.2,3342.8,0.00448611]
[1768488053662,0.00219534,3344.0,3342.8,0.00448611]
[1768488053860,0.15175534,3344.1,3342.8,0.00448611]
[1768488054060,0.16742029,3344.4,3342.3,0.00348387]
[1768488054262,0.16742029,3344.2,3342.3,0.00348387]
[1768488054456,1.0201468,3344.1,3342.3,0.00348387]
[1768488054657,4.01094966,3344.0,3342.3,0.00348387]
[1768488054957,0.16742029,3343.3,3341.3,0.01672732]
[1768488055562,0.16742029,3343.2,3341.3,0.01672732]
[1768488055759,0.16742029,3343.2,3341.3,0.01999532]
[1768488055963,0.16742029,3342.5,3341.3,0.01999532]
[1768488056161,0.16742029,3342.5,3339.4,0.22694795]
[1768488056162,0.14965,3342.1,3339.5,0.14976]
[1768488056361,0.14965,3342.1,3339.5,0.3121985]
[1768488056362,0.16742029,3342.0,3339.5,0.3121985]
[1768488056562,0.00448611,3342.2,3338.8,2.992]
[1768488056563,0.00448611,3342.2,3339.8,0.1624385]
[1768488056769,2.992,3343.1,3339.8,0.1624385]
[1768488056962,0.85083051,3343.0,3339.8,0.1624385]
[1768488057163,0.85083051,3342.9,3339.8,0.1624385]
[1768488057359,1.3187981,3342.8,3340.0,0.1624385]
[1768488057562,1.3187981,3342.7,3340.0,0.1624385]
[1768488057766,0.00448611,3341.7,3340.0,0.1647818]
[1768488058865,0.00448611,3341.7,3340.1,0.1624385]
[1768488059063,0.00448611,3341.7,3340.3,0.1624385]
[1768488059662,0.00249057,3342.7,3340.5,0.1624385]
[1768488059872,0.00249057,3342.7,3340.5,3.1554385]
[1768488060072,0.00249057,3342.7,3340.6,0.1624385]
[1768488060473,0.00249057,3342.7,3340.7,0.1624385]
[1768488060673,0.00249057,3342.7,3341.0,0.1624385]
[1768488060875,0.14959,3343.4,3341.5,0.1624385]
[1768488061070,0.14957,3343.8,3341.5,0.1624385]
[1768488061272,0.46782594,3343.7,3341.5,0.1624385]
[1768488061477,0.14958,3343.6,3341.5,0.1624385]
[1768488061862,0.00448611,3342.9,3341.5,0.1624385]
[1768488062063,0.00448611,3342.9,3341.4,0.00448611]
[1768488062572,0.14964,3342.4,3340.1,0.1624385]
[1768488062762,0.14964,3342.3,3340.1,0.1624385]
[1768488064074,0.14964,3342.3,3340.9,0.00448611]
[1768488064574,0.00448611,3342.9,3340.9,0.16692461]
[1768488064775,0.00448611,3342.9,3341.5,0.1624385]
[1768488064980,1e-08,3342.9,3341.7,0.1624385]
[1768488065979,1e-08,3342.9,3341.7,6.3120985]
[1768488066276,0.0031885,3343.6,3342.4,0.1624385]
[1768488066474,0.1495,3345.3,3342.7,0.1624385]
[1768488066883,0.99779305,3345.2,3342.7,0.1624385]
[1768488067082,0.14951,3345.2,3342.7,0.1624385]
[1768488067279,2.993,3345.8,3342.7,0.1624385]
[1768488067485,1.29046447,3345.7,3343.6,0.00448611]
[1768488067688,1.29046447,3345.6,3343.6,0.00448611]
[1768488067986,2.99646775,3345.8,3343.6,0.00448611]
[1768488067987,1.29046447,3345.5,3343.6,0.00448611]
[1768488068178,0.00448611,3344.9,3342.7,0.16629771]
[1768488068380,0.14953,3344.6,3342.7,0.16629771]
[1768488068784,0.14956,3344.1,3342.7,0.16629771]
[1768488069082,0.14956,3344.1,3342.7,0.00385921]
[1768488069276,0.14953,3344.8,3342.7,0.16629771]
[1768488069482,0.00448611,3344.9,3343.1,0.00448611]
[1768488069677,0.14954,3344.6,3343.1,0.00448611]
[1768488070078,0.14961,3343.0,3340.8,0.1624385]
[1768488070282,0.14957,3343.7,3341.1,0.1624385]
[1768488070487,0.14957,3343.7,3341.3,0.1624385]
[1768488070684,40.87718861,3345.9,3342.5,0.1624385]
[1768488070886,2.4389949,3345.7,3342.7,0.1624385]
[1768488071185,0.00448611,3344.5,3342.7,0.16479319]
[1768488071789,0.15402611,3344.5,3342.7,0.16479319]
[1768488072486,0.00448611,3344.5,3342.7,0.31441319]
[1768488072694,0.00448611,3344.5,3343.3,0.00448611]
[1768488073387,0.00448611,3344.5,3343.3,0.16692461]
[1768488074289,0.1495,3345.5,3343.3,6.16692461]
[1768488074490,0.1495,3345.4,3343.4,0.1624385]
[1768488075683,0.00448611,3344.7,3343.4,0.1624385]
[1768488075880,1.82834358,3345.7,3343.4,0.1624385]
[1768488076183,1.82535064,3344.7,3343.3,0.00448611]
[1768488076387,1.82535064,3344.2,3342.7,0.00235469]
[1768488076788,1.82535064,3345.1,3342.7,0.16479319]
[1768488076995,1.82535064,3344.6,3342.7,0.16479319]
[1768488077297,0.85432014,3344.5,3342.7,0.16479319]
[1768488077494,0.14957,3343.8,3342.7,0.16479319]
[1768488077689,0.14958,3343.7,3342.7,0.16479319]
[1768488078294,0.00448611,3344.0,3342.7,0.16479319]
[1768488078488,0.00448611,3344.0,3342.7,0.00235469]
[1768488078694,0.14958,3343.6,3342.7,0.00235469]
[1768488078990,0.14958,3343.6,3341.0,0.1624385]
[1768488078991,2.36402125,3343.6,3341.0,0.1624385]
[1768488079181,0.14963,3342.5,3341.0,0.1624385]
[1768488079383,0.14966,3341.9,3341.0,0.1624385]
[1768488079582,0.14966,3341.9,3340.2,0.1624385]
[1768488079982,0.00219601,3341.9,3340.2,0.16579144]
[1768488080194,0.00219601,3341.9,3340.4,0.1624385]
[1768488080382,0.00448611,3341.4,3340.4,0.1624385]
[1768488080792,0.00219601,3341.9,3340.4,6.1624385]
[1768488080988,0.00219601,3341.9,3340.5,0.15025311]
[1768488081892,0.00219601,3341.9,3341.0,0.15025311]
[1768488083399,0.00448611,3341.8,3341.0,0.15025311]
[1768488083694,1e-08,3341.8,3341.0,0.15025311]
[1768488083891,1e-08,3341.8,3340.9,0.00448611]
[1768488085491,1e-08,3341.8,3340.9,0.16572603]
[1768488085690,0.14962,3342.8,3340.9,0.16572603]
[1768488086194,0.14962,3342.8,3341.0,2.993]
[1768488086391,0.14958,3343.6,3341.1,0.16123992]
[1768488086588,0.15169985,3343.6,3341.3,0.16123992]
[1768488086892,0.15169985,3343.6,3342.1,0.16123992]
[1768488087094,0.1496,3343.2,3342.1,0.16123992]
[1768488087799,0.00211985,3343.6,3342.1,0.16123992]
[1768488088296,0.00448611,3343.2,3342.1,0.16123992]
[1768488088798,0.00211985,3343.6,3342.1,0.16123992]
[1768488089898,0.14962,3342.8,3342.0,0.00448611]
[1768488091097,0.14958,3343.5,3341.4,0.16123992]
[1768488091289,0.14958,3343.5,3342.1,0.00448611]
[1768488091290,0.00448611,3342.8,3342.1,0.00448611]
[1768488091498,0.00448611,3342.8,3342.1,0.16572603]
[1768488091794,0.00448611,3342.8,3341.5,0.16123992]
[1768488092599,0.00211985,3343.6,3341.6,0.16123992]
[1768488092798,0.00211985,3343.6,3341.8,0.16123992]
[1768488093801,0.00211985,3343.6,3342.5,0.16123992]
[1768488094597,5.14796381,3345.2,3342.5,0.16123992]
[1768488094598,5.984,3345.6,3342.5,0.16123992]
[1768488094801,0.14955,3344.2,3342.5,0.16123992]
[1768488095304,0.07382843,3345.5,3342.5,0.16123992]
[1768488095594,0.07382843,3345.3,3342.5,0.16123992]
[1768488095797,5.1547683,3344.7,3342.4,6.11e-06]
[1768488096103,0.14963,3342.5,3342.4,6.11e-06]
[1768488096300,0.14963,3342.4,3341.2,0.16123992]
[1768488096799,0.0038303,3342.5,3341.2,0.16123992]
[1768488097288,0.14964,3342.4,3341.5,0.00448611]
[1768488098801,0.0038303,3342.5,3341.5,0.16572603]
[1768488099707,0.14957,3343.8,3341.6,0.16123992]
[1768488100203,0.07293952,3344.8,3341.6,0.16123992]
[1768488100505,0.00448611,3343.5,3341.8,0.16123992]
[1768488101300,0.00448611,3343.5,3341.9,0.16123992]
[1768488102099,0.15406611,3343.5,3341.9,0.16123992]
[1768488104198,0.00448611,3343.5,3341.9,0.16123992]
[1768488104805,0.14956,3344.0,3342.0,0.16123992]
[1768488105001,0.00273517,3344.8,3342.0,0.16123992]
[1768488105201,0.14959,3343.5,3342.0,0.16123992]
[1768488105395,0.1496,3343.2,3341.5,0.00448611]
[1768488105614,0.09984725,3344.0,3341.5,0.00448611]
[1768488105908,0.14962,3342.8,3341.5,0.00448611]
[1768488106108,0.85515451,3342.7,3341.5,0.00448611]
[1768488106303,0.09984725,3343.5,3341.5,0.00448611]
[1768488106611,0.14965,3342.0,3340.2,0.16459286]
[1768488106802,0.15295217,3342.0,3340.2,0.16459286]
[1768488107707,0.15295217,3342.0,3340.8,0.00448611]
[1768488108212,0.15295217,3342.0,3340.2,0.00335294]
[1768488108213,0.14967,3341.7,3340.2,0.00335294]
[1768488108416,0.1497,3341.0,3338.3,0.16123992]
[1768488109208,0.1497,3341.0,3338.5,0.16123992]
[1768488109407,0.1497,3340.9,3338.6,0.16123992]
[1768488109609,0.1497,3340.9,3339.4,0.00448611]
[1768488109813,0.08807671,3341.5,3339.4,0.00448611]
[1768488110112,0.85355434,3341.4,3339.4,0.00448611]
[1768488110315,0.14971,3340.8,3338.6,0.16123992]
[1768488110512,0.14972,3340.5,3338.5,0.00259128]
[1768488110710,0.14972,3340.5,3338.5,0.15411345]
[1768488111011,0.08297318,3341.4,3338.5,0.15411345]
[1768488111202,0.14972,3340.5,3338.5,0.15411345]
[1768488111513,40.8,3341.5,3338.5,0.00259128]
[1768488111514,0.14974,3340.0,3338.5,0.00259128]
[1768488111711,0.00448611,3339.8,3338.5,0.00259128]
[1768488113046,0.14976,3339.5,3337.8,0.15152217]
[1768488113403,0.00448611,3339.8,3337.8,0.15152217]
[1768488114115,0.00756301,3339.8,3337.8,0.1553644]
[1768488114418,0.14979,3338.8,3337.0,0.15152217]
[1768488115118,0.05468481,3339.8,3337.0,0.15152217]
[1768488115306,3.8425904,3339.7,3337.0,0.15432405]
[1768488115511,0.14979,3338.9,3337.0,0.15432405]
[1768488116109,0.15731301,3339.8,3337.3,0.15152217]
[1768488116304,0.14977,3339.4,3337.3,0.15152217]
[1768488116509,0.14977,3339.4,3337.4,0.15152217]
[1768488116814,0.00756301,3339.8,3337.4,0.15152217]
[1768488117011,0.00756301,3339.8,3338.1,0.1545369]
[1768488117405,0.14977,3339.3,3338.1,0.1545369]
[1768488118217,0.00756301,3339.8,3338.1,0.1545369]
[1768488119015,0.14976,3339.6,3338.1,0.1545369]
[1768488119710,0.14976,3339.5,3338.1,0.1545369]
[1768488119917,0.00756301,3339.8,3338.1,0.1545369]
[1768488120616,6.0,3339.9,3338.1,0.00301473]
[1768488120915,2.996,3340.3,3338.1,0.1545369]
[1768488121111,0.14973,3340.2,3338.1,0.1545369]
[1768488121513,0.14975,3339.9,3338.1,0.1545369]
[1768488121705,0.0044933,3339.5,3338.1,0.1545369]
[1768488122321,0.00328399,3340.2,3338.1,6.15283473]
[1768488122509,0.00328399,3340.2,3338.2,0.15152217]
[1768488122820,0.00328399,3340.2,3338.1,0.00301473]
[1768488122821,6.00328399,3340.2,3338.1,0.00301473]
[1768488123116,0.04995434,3340.1,3338.1,0.00301473]
[1768488123317,0.14977,3339.3,3338.1,0.1545369]
[1768488123716,0.0044933,3339.4,3338.1,0.1545369]
[1768488125230,0.14978,3339.1,3338.1,0.1545369]
[1768488125418,0.0044933,3339.4,3337.5,0.15152217]
[1768488126232,0.1498,3338.7,3337.5,0.15152217]
[1768488126414,0.14977,3339.3,3337.5,0.15152217]
[1768488126615,0.0044933,3339.4,3337.0,0.15432405]
[1768488126924,0.14982,3338.2,3337.0,0.15432405]
[1768488127323,0.0044933,3339.4,3337.2,0.15152217]
[1768488127527,0.1498,3338.7,3337.2,0.15152217]
[1768488127728,0.0044933,3339.4,3337.2,0.15152217]
[1768488128027,6.0044933,3339.4,3337.0,0.00280188]
[1768488128217,6.0044933,3339.4,3336.3,0.15152217]
[1768488128218,2.0747488,3339.1,3336.3,0.15152217]
[1768488128419,0.14986,3337.4,3336.3,0.15152217]
[1768488128619,0.14983,3338.1,3336.3,0.15152217]
[1768488129028,0.14983,3338.1,3337.0,0.15454301]
[1768488129223,0.15202352,3338.1,3337.0,0.1552798]
[1768488129425,0.15202352,3338.1,3337.6,0.15152217]
[1768488129426,0.00219352,3338.1,3337.6,0.15152217]
[1768488129627,0.06078858,3340.3,3337.6,0.15152217]
[1768488129924,0.14976,3339.5,3337.6,0.15152217]
[1768488130122,0.0044933,3339.3,3337.6,0.15152217]
[1768488130318,0.14978,3339.2,3338.2,0.0044933]
[1768488130631,0.15291874,3339.2,3338.2,0.0044933]
[1768488131028,0.00313874,3339.2,3337.4,0.15152217]
[1768488131223,3.00013874,3339.2,3337.0,0.00375763]
[1768488131524,6.00313874,3339.2,3337.0,0.00375763]
[1768488131725,0.14984,3337.8,3337.0,0.00375763]
[1768488132027,0.14985,3337.6,3337.0,0.00375763]
[1768488132221,0.14982,3338.3,3337.0,0.00375763]
[1768488132428,0.14982,3338.3,3337.1,0.15152217]
[1768488132616,0.14982,3338.3,3337.2,0.15152217]
[1768488132926,0.14982,3338.2,3337.3,0.00302084]
[1768488133125,0.14982,3338.2,3337.4,0.0044861]
[1768488133329,0.14983,3338.1,3337.4,0.0044861]
[1768488133826,0.00313874,3339.2,3337.4,0.0044861]
[1768488134329,0.00313874,3339.2,3337.4,0.15600827]
[1768488134930,0.14981,3338.5,3337.4,0.15600827]
[1768488135128,0.14978,3339.1,3337.4,0.15600827]
[1768488135530,0.00313874,3339.2,3337.4,0.15600827]
[1768488135731,0.1498,3338.7,3337.4,0.15600827]
[1768488136727,0.00313874,3339.2,3337.4,0.15600827]
[1768488136728,0.00313874,3339.2,3337.4,0.0044861]
[1768488136915,0.14983,3338.0,3337.4,6.1e-06]
[1768488137118,0.85585667,3339.1,3337.0,0.00375763]
[1768488137119,0.14984,3337.9,3337.0,0.00375763]
[1768488137533,0.14984,3337.8,3337.0,0.00375763]
[1768488137719,0.00313874,3339.2,3337.0,0.00375763]
[1768488137920,1.24718045,3339.1,3337.0,0.1552798]
[1768488138122,0.14983,3338.1,3337.0,0.1552798]
[1768488138629,0.14985,3337.6,3337.0,0.00375763]
[1768488138819,0.14983,3338.0,3337.0,0.00375763]
[1768488139022,0.14984,3337.9,3337.0,0.00375763]
[1768488139229,0.14984,3337.7,3337.0,0.00375763]
[1768488139727,0.14984,3337.7,3336.4,0.15152217]
[1768488139728,0.14983,3338.0,3336.4,0.15152217]
[1768488139927,0.14985,3337.7,3336.4,0.15152217]
[1768488140126,0.0044933,3337.5,3336.4,0.15152217]
[1768488140326,0.1543433,3337.5,3336.4,0.15152217]
[1768488140819,0.0044933,3337.5,3336.4,0.00249343]
[1768488141018,0.14989,3336.7,3335.7,0.13936151]
[1768488141428,0.14986,3337.4,3335.7,0.13936151]
[1768488141734,0.14987,3337.1,3335.7,0.13936151]
[1768488141930,0.14987,3337.1,3335.7,0.14316574]
[1768488141931,0.14988,3337.0,3335.7,0.14316574]
[1768488142429,0.0038107,3337.1,3335.7,0.14316574]
[1768488142638,0.0038107,3337.1,3335.7,0.00380423]
[1768488142833,0.1499,3336.4,3335.7,0.14316574]
[1768488143238,0.14988,3337.0,3335.7,0.14316574]
[1768488143532,0.0038107,3337.1,3335.1,0.13936151]
[1768488143732,0.14992,3336.0,3335.1,0.13936151]
[1768488144326,0.0038107,3337.1,3334.1,0.14190412]
[1768488144534,0.14993,3335.9,3334.1,0.14487545]
[1768488144838,0.14989,3336.7,3335.3,0.14190412]
[1768488145332,0.14989,3336.7,3335.7,0.14570835]
[1768488145528,0.14989,3336.7,3335.7,0.14190412]
[1768488145732,0.14989,3336.7,3335.8,0.00380423]
[1768488145931,0.0044933,3336.5,3335.8,0.00380423]
[1768488146127,0.0038107,3337.1,3335.9,0.14190412]
[1768488146537,0.14983,3338.0,3336.5,0.14190412]
[1768488146730,0.8560708,3337.9,3335.2,0.14190412]
[1768488146930,0.8560708,3337.8,3335.2,0.14190412]
[1768488147232,0.8560708,3337.7,3335.2,0.14190412]
[1768488147427,0.0044933,3336.8,3335.5,0.14190412]
[1768488147633,0.00667501,3336.8,3336.2,0.14190412]
[1768488147829,0.14984,3337.8,3336.2,0.14570835]
[1768488148033,0.14984,3337.8,3336.2,0.14190412]
[1768488148538,5.12769969,3338.8,3336.2,0.14190412]
[1768488148725,5.12769969,3338.8,3336.1,0.0044933]
[1768488148726,0.14985,3337.5,3336.1,0.0044933]
[1768488149129,0.14985,3337.5,3336.2,0.00380423]
[1768488149337,0.14985,3337.5,3336.2,0.14570835]
[1768488149841,0.0044933,3337.8,3336.3,0.14570835]
[1768488150137,0.0044933,3337.8,3336.6,0.14190412]
[1768488150343,0.0044933,3337.8,3336.8,0.00380423]
[1768488150733,0.0044933,3337.8,3336.9,0.00380423]
[1768488151233,0.0044933,3337.8,3337.0,0.00380423]
[1768488151436,0.0044933,3337.8,3337.1,0.00380423]
[1768488151742,0.0044933,3337.8,3337.2,0.00380423]
[1768488152241,0.0044933,3337.8,3336.1,3.0024933]
[1768488152242,0.00286739,3338.8,3337.5,0.00380423]
[1768488152437,0.00286739,3338.8,3337.4,0.14190412]
[1768488152438,0.14981,3338.5,3337.4,0.14190412]
[1768488152634,0.85747197,3338.4,3337.4,0.14190412]
[1768488152833,0.14981,3338.5,3337.6,0.00380423]
[1768488153033,0.00286739,3338.8,3337.6,0.00380423]
[1768488153246,0.85746753,3338.7,3337.7,0.0044933]
[1768488153547,0.85746753,3338.6,3337.7,0.0044933]
[1768488153734,0.85746753,3338.5,3337.7,0.00829753]
[1768488153937,0.15266739,3338.8,3337.7,0.00829753]
[1768488154441,0.15266739,3338.8,3337.8,0.00380423]
[1768488154840,0.00286739,3338.8,3338.3,0.01791873]
[1768488155143,0.14978,3339.2,3338.3,0.00297747]
[1768488155342,0.14978,3339.2,3338.5,0.03583746]
[1768488155544,0.14978,3339.2,3338.3,0.00297747]
[1768488155842,0.14978,3339.1,3338.3,0.00297747]
[1768488156043,0.00354144,3339.1,3338.3,0.00297747]
[1768488156237,0.14975,3339.7,3338.5,0.00380423]
[1768488156433,0.14975,3339.7,3338.3,0.0067817]
[1768488156639,0.14975,3339.7,3338.6,0.00380423]
[1768488156839,0.0044933,3339.3,3338.6,0.00380423]
[1768488157036,0.14973,3340.3,3338.9,0.14190412]
[1768488157235,0.00273674,3340.3,3339.1,0.14190412]
[1768488157443,0.1497,3341.0,3339.4,0.14570835]
[1768488157637,0.14966,3341.7,3339.4,0.14190412]
[1768488157834,0.85822576,3341.6,3339.7,0.14190412]
[1768488158051,0.85822576,3341.5,3339.7,0.14190412]
[1768488158255,0.14971,3340.8,3339.7,0.14190412]
[1768488158457,0.1526071,3340.8,3339.7,0.14190412]
[1768488158764,0.14972,3340.6,3339.7,0.14190412]
[1768488159264,0.0028971,3340.8,3339.7,0.14190412]
[1768488159566,0.0028971,3340.8,3339.8,0.14639742]
[1768488160362,0.14969,3341.1,3339.8,6.14639742]
[1768488160562,0.14969,3341.1,3339.9,0.14190412]
[1768488160760,1.229,3342.6,3339.9,0.14190412]
[1768488160761,0.14966,3341.9,3339.9,0.14190412]
[1768488160967,0.14968,3341.4,3339.9,0.14190412]
[1768488161262,0.14968,3341.3,3340.1,0.14190412]
[1768488161664,0.06923291,3343.1,3340.1,0.14190412]
[1768488161665,0.14966,3341.9,3340.1,0.14190412]
[1768488162168,0.06973267,3343.8,3341.1,0.14190412]
[1768488162354,0.14965,3342.1,3341.1,0.14190412]
[1768488162554,0.14966,3341.8,3341.1,0.14190412]
[1768488162756,0.06957132,3344.3,3341.3,0.14190412]
[1768488162956,0.85326782,3344.2,3341.3,0.14190412]
[1768488163168,0.85326782,3344.1,3341.3,0.14190412]
[1768488163466,1.83253374,3344.0,3342.4,3.3e-06]
[1768488163767,0.14959,3343.3,3342.4,3.3e-06]
[1768488163963,0.1496,3343.1,3342.4,3.3e-06]